Cogmind - Beta 14 @@@ ROGUE MODE // 2024.07.14 @ 20:58:27

Player: Decinym

Result: Destroyed by BC-QPP(R) with Subdweller Machine Gun

 Performance 
-------------
Evolutions (0)             0
Regions Visited (2)        400
Robots Destroyed (14)      70
Value Destroyed (434)      434
Prototype IDs (0)          0
Alien Tech Used (0)        0
Bonus (0)                  0
              TOTAL SCORE: 904

 Bonus
-------
None

 Cogmind 
---------
Core Integrity             0/250
Matter                     292/300
Energy                     196/200
System Corruption          0%
Temperature                Cool (2)
Movement                   Treading (160)
Location                   -10/Subcaves

 Parts 
-------
>               --- POWER (1) --------
     Subdweller Power Source
>               --- PROPULSION (2) ---
          Light Treads
          Light Treads
>               --- UTILITY (2) ------
         Medium Storage Unit
      Makeshift Light Armor Plating
>               --- WEAPON (2) -------
     Subdweller Laser
     Subdweller Machine Gun
>               --- INVENTORY (10) ---
     Subdweller Power Source
          Light Treads
                Wheel
  High-capacity Storage Unit
     Subdweller Laser
      Makeshift Laser
     Subdweller Beam Cannon
     Subdweller Shrapnel Launcher
      Makeshift Sword

 Peak State 
------------
>               --- POWER ------------
     Subdweller Power Source
>               --- PROPULSION -------
          Light Treads
          Light Treads
>               --- UTILITY ----------
         Medium Storage Unit
      Makeshift Light Armor Plating
>               --- WEAPON -----------
     Subdweller Laser
     Subdweller Machine Gun
>               --- INVENTORY --------
          Light Treads
                Wheel
                Wheel
  High-capacity Storage Unit
          Small Laser
          Small Laser
      Makeshift Laser
     Subdweller Shrapnel Launcher
      Makeshift Sword
[Rating: 14]

 Favorites 
-----------
Power                      Light Ion Engine
  Engine                   Light Ion Engine
Propulsion                 Aluminum Leg
  Treads                   Light Treads
  Leg                      Aluminum Leg
Utility                    Medium Storage Unit
  Device                   Heat Sink
  Storage                  Medium Storage Unit
  Protection               Makeshift Light Armor Plating
Weapon                     Light Assault Rifle
  Energy Gun               Particle Gun
  Ballistic Gun            Light Assault Rifle
  Ballistic Cannon         Battle Cannon

 Build                          | -11 -10 -10 
-------                    Run  | Yrd Mat Sub 
Slots Evolved              .    | .   .   .   
  Power                    .    | .   .   .   
  Propulsion               .    | .   .   .   
  Utility                  .    | .   .   .   
  Weapon                   .    | .   .   .   
Parts Attached             20   | .   9   11  
  Power                    4    | .   3   1   
    Engine                 4    | .   3   1   
    Core                   .    | .   .   .   
    Reactor                .    | .   .   .   
  Propulsion               5    | .   2   3   
    Treads                 2    | .   .   2   
    Leg                    3    | .   2   1   
    Wheel                  .    | .   .   .   
    Hover                  .    | .   .   .   
    Flight                 .    | .   .   .   
  Utility                  4    | .   3   1   
    Device                 1    | .   1   .   
    Storage                2    | .   2   .   
    Processor              .    | .   .   .   
    Hackware               .    | .   .   .   
    Protection             1    | .   .   1   
    Artifact               .    | .   .   .   
  Weapon                   7    | .   1   6   
    Energy Gun             5    | .   1   4   
    Energy Cannon          .    | .   .   .   
    Ballistic Gun          1    | .   .   1   
    Ballistic Cannon       1    | .   .   1   
    Launcher               .    | .   .   .   
    Special Weapon         .    | .   .   .   
    Impact Weapon          .    | .   .   .   
    Slashing Weapon        .    | .   .   .   
    Piercing Weapon        .    | .   .   .   
    Special Melee Weapon   .    | .   .   .   
  Unidentified Prototypes  .    | .   .   .   
Parts Lost                 6    | .   2   4   
  Power                    3    | .   2   1   
  Propulsion               1    | .   .   1   
  Utility                  .    | .   .   .   
  Weapon                   2    | .   .   2   
  Highest Loss Streak      3    | .   2   3   
  To Critical Strikes      1    | .   .   1   
Average Slot Usage (%)     90   | .   91  90  
  Engine                   7    | .   13  5   
  Treads                   12   | .   .   16  
  Leg                      15   | .   28  10  
  Device                   10   | .   6   11  
  Storage                  14   | .   14  14  
  Protection               1    | .   .   2   
  Energy Gun               16   | .   14  16  
  Ballistic Gun            9    | .   14  7   
  Ballistic Cannon         2    | .   .   3   
Naked Turns                .    | .   .   .   
Heaviest Build             27   | 10  18  27  
  Greatest Support         40   | 20  20  40  
  Greatest Overweight (x)  .    | .   .   .   
  Average Overweight (x)   .    | .   .   .   
Largest Inventory Capacity 20   | .   20  10  
  Average Capacity         9    | .   9   10  
  Most Carried             10   | .   10  10  
  Average Carried          8    | .   8   8   
  Final Capacity           10   | 8   10  10  
  Final Carried            10   | 6   10  9   

 Class Distribution 
--------------------
 58% | Mutant
 41% | Scavenger-Mutant

 Dominant Class 
----------------
 Mutant | -10/Materials
 Mutant | -10/Subcaves

 Resources                      | -11 -10 -10 
-----------                Run  | Yrd Mat Sub 
Matter Collected           506  | 200 77  229 
  Remotely                 .    | .   .   .   
Salvage Created            496  | .   265 231 
  Parts                    30   | .   17  13  
Haulers Intercepted        1    | .   1   .   
Recyclers Shooed           .    | .   .   .   
Parts Field Recycled       .    | .   .   .   
  Retrieved Matter         .    | .   .   .   
Parts Self-Destructed      .    | .   .   .   
  Prevented                .    | .   .   .   

 Kills                          | -11 -10 -10 
-------                    Run  | Yrd Mat Sub 
Combat Hostiles Destroyed  13   | .   7   6   
  Guns                     12   | .   7   5   
  Cannons                  1    | .   .   1   
Classes Destroyed          4    | .   3   1   
  Hauler                   1    | .   1   .   
  Swarmer                  3    | .   3   .   
  Grunt                    4    | .   4   .   
  Subdweller               6    | .   .   6   
Best Kill Streak           4    | .   4   2   
  Combat Bots Only         4    | .   4   2   
Max Kills in Single Turn   1    | .   1   1   
  Gunslinging              .    | .   .   .   
  Exploded                 .    | .   .   .   
  Melee                    .    | .   .   .   
Uniques/NPCs Destroyed     .    | .   .   .   

 Combat                         | -11  -10  -10  
--------                   Run  | Yrd  Mat  Sub  
Hostile Shots Fired        101  | .    45   56   
  Missed                   19   | .    9    10   
Damage Taken               1342 | .    402  940  
  Core                     256  | .    47   209  
  Absorbed by Shields      .    | .    .    .    
Core Remaining (%)         100  | 100  .    .    
Volleys Fired              70   | .    29   41   
  Largest                  2    | .    2    2    
  Hottest                  90   | .    85   90   
Shots Fired                132  | .    58   74   
  Gun                      115  | .    58   57   
  Cannon                   17   | .    .    17   
  Launcher                 .    | .    .    .    
  Special                  .    | .    .    .    
  Kinetic                  64   | .    29   35   
  Thermal                  68   | .    29   39   
  Explosive                .    | .    .    .    
  Electromagnetic          .    | .    .    .    
  Robot Hit Streak         24   | .    7    24   
  Robot Miss Streak        2    | .    2    2    
  Penetration Max          .    | .    .    .    
  Secondary Targets        1    | .    1    .    
    Max Gunslinging Chain  1    | .    1    .    
Shots Hit Robots           90   | .    37   53   
  Core Hits                32   | .    18   14   
  Critical Kills           .    | .    .    .    
  Critical Parts Destroyed .    | .    .    .    
  Critical Strikes         3    | .    .    3    
    Burn                   3    | .    .    3    
Melee Attacks              .    | .    .    .    
  Impact                   .    | .    .    .    
  Slashing                 .    | .    .    .    
  Piercing                 .    | .    .    .    
  Sneak Attacks            .    | .    .    .    
    Combat Hostiles        .    | .    .    .    
  Follow-up Attacks        .    | .    .    .    
Damage Inflicted           1132 | .    364  768  
  Guns                     936  | .    364  572  
  Cannons                  196  | .    .    196  
  Explosions               .    | .    .    .    
  Melee                    .    | .    .    .    
  Ramming                  .    | .    .    .    
  Kinetic                  458  | .    153  305  
  Thermal                  674  | .    211  463  
  Explosive                .    | .    .    .    
  Electromagnetic          .    | .    .    .    
  Impact                   .    | .    .    .    
  Slashing                 .    | .    .    .    
  Piercing                 .    | .    .    .    
Highest Corruption         .    | .    .    .    
  Average Corruption       .    | .    .    .    
  Corruption Purged        .    | .    .    .    
  Corruption Blocked       .    | .    .    .    
Overload Shots             .    | .    .    .    
Overflow Damage            .    | .    .    .    
  Projectiles              .    | .    .    .    
  Explosions               .    | .    .    .    
  Melee                    .    | .    .    .    
Knockbacks                 1    | .    .    1    
  Impact                   .    | .    .    .    
  Kinetic                  1    | .    .    1    
  Secondary                .    | .    .    .    
Self-Inflicted Damage      .    | .    .    .    
  Shots                    .    | .    .    .    
  Rammed                   .    | .    .    .    
Targets Rammed             .    | .    .    .    
  Kicked                   .    | .    .    .    
  Crushed                  .    | .    .    .    
Highest Temperature        141  | .    141  .    
  Average Temperature      57   | .    57   .    
  Received Heat Transfer   225  | .    165  60   
Siege Activations          .    | .    .    .    
Robots Corrupted           .    | .    .    .    
  Combat Hostiles          .    | .    .    .    
  Parts Fried              .    | .    .    .    
  Impact Corruptions       .    | .    .    .    
Robots Melted              .    | .    .    .    
  Combat Hostiles          .    | .    .    .    
  Parts Melted             4    | .    1    3    
  Heat Transferred         1760 | .    475  1285 
Parts Sabotaged            .    | .    .    .    
Parts Stolen               .    | .    .    .    
Parts Stripped             .    | .    .    .    
Power Chain Reactions      .    | .    .    .    

 Alert                          | -11 -10 -10 
-------                    Run  | Yrd Mat Sub 
Peak Influence             217  | .   217 .   
  Initial                  .    | .   .   .   
  Average                  137  | .   137 .   
Maximum Alert Level        1    | .   1   .   
  Low Security (%)         56   | .   56  .   
  Level 1                  43   | .   43  .   
  Level 2                  .    | .   .   .   
  Level 3                  .    | .   .   .   
  Level 4                  .    | .   .   .   
  Level 5                  .    | .   .   .   
  High Security            .    | .   .   .   
  Max Security             .    | .   .   .   
Squads Dispatched          .    | .   .   .   
  Investigation            .    | .   .   .   
  Extermination            .    | .   .   .   
  Reinforcement            .    | .   .   .   
  Assault                  .    | .   .   .   
  Garrison                 .    | .   .   .   
  Intercept                .    | .   .   .   
Searches Triggered         .    | .   .   .   
Construction Impeded       .    | .   .   .   
Haulers Reinforced         .    | .   .   .   
Active Scanning Responses  .    | .   .   .   
Cargo Convoy Interrupts    .    | .   .   .   

 Stealth                        | -11 -10 -10 
---------                  Run  | Yrd Mat Sub 
Distress Signals           3    | .   3   .   
Communications Jammed      .    | .   .   .   
  Distress Signals         .    | .   .   .   
Times Spotted              20   | .   12  8   
  Peak Tracking Total      8    | .   8   3   
  Tactical Retreats        .    | .   .   .   

 Traps                          | -11 -10 -10 
-------                    Run  | Yrd Mat Sub 
Traps Triggered            .    | .   .   .   
  Indirectly               .    | .   .   .   
Trap Hack Attempts         .    | .   .   .   
  Triggered                .    | .   .   .   
  Disarmed                 .    | .   .   .   
  Reprogrammed             .    | .   .   .   
  Reused                   .    | .   .   .   
Traps Extracted            .    | .   .   .   
  Installed                .    | .   .   .   
  Triggered                .    | .   .   .   

 Machines                       | -11 -10 -10 
----------                 Run  | Yrd Mat Sub 
Machines Disabled          .    | .   .   .   
  Max in Single Turn       .    | .   .   .   
Machines Repaired          .    | .   .   .   
Machines Dismantled        .    | .   .   .   
Machines Sabotaged         .    | .   .   .   
Overloaded Fab Kills       .    | .   .   .   

 Hacking                        | -11 -10 -10 
---------                  Run  | Yrd Mat Sub 
Machines Accessed          2    | .   2   .   
  Terminals                1    | .   1   .   
  Fabricators              .    | .   .   .   
  Repair Stations          .    | .   .   .   
  Recycling Units          1    | .   1   .   
  Scanalyzers              .    | .   .   .   
  Garrison Access          .    | .   .   .   
Total Hacks                3    | .   3   .   
  Successful               2    | .   2   .   
  Failed                   1    | .   1   .   
    Catastrophic           1    | .   1   .   
  Database Lockouts        .    | .   .   .   
  Manual                   3    | .   3   .   
  Terminals                1    | .   1   .   
  Fabricators              .    | .   .   .   
  Repair Stations          .    | .   .   .   
  Recycling Units          2    | .   2   .   
  Scanalyzers              .    | .   .   .   
  Garrison Access          .    | .   .   .   
Terminal Hacks             .    | .   .   .   
Fabricator Hacks           .    | .   .   .   
Repair Station Hacks       .    | .   .   .   
Recycling Unit Hacks       .    | .   .   .   
Scanalyzer                 .    | .   .   .   
Garrison Access Hacks      .    | .   .   .   
Unauthorized Hacks         .    | .   .   .   
  Terminals                .    | .   .   .   
  Fabricators              .    | .   .   .   
  Repair Stations          .    | .   .   .   
  Recycling Units          .    | .   .   .   
  Scanalyzers              .    | .   .   .   
  Garrison Access          .    | .   .   .   
Data Cores Recovered       .    | .   .   .   
  Used                     .    | .   .   .   
Hacking Detections         1    | .   1   .   
  Full Trace Events        .    | .   .   .   
  Feedback Events          .    | .   .   .   
  Feedback Blocked         .    | .   .   .   
Robot Schematics Acquired  .    | .   .   .   
  Robots Built             .    | .   .   .   
    Authchips              .    | .   .   .   
    Time                   .    | .   .   .   
  Total Robot Build Rating .    | .   .   .   
Part Schematics Acquired   .    | .   .   .   
  Parts Built              .    | .   .   .   
    Authchips              .    | .   .   .   
    Time                   .    | .   .   .   
  Total Part Build Rating  .    | .   .   .   
Parts Repaired             .    | .   .   .   
  Time                     .    | .   .   .   
Parts Recycled             .    | .   .   .   
  Recycled Matter          .    | .   .   .   
  Retrieved Matter         .    | .   .   .   
  Retrieved Components     .    | .   .   .   
Parts Scanalyzed           .    | .   .   .   
  Part Schematics Acquired .    | .   .   .   
  Parts Damaged            .    | .   .   .   

 Bothacking                     | -11 -10 -10 
------------               Run  | Yrd Mat Sub 
Used RIF Installer         .    | .   .   .   
Robots Hacked              .    | .   .   .   
  Non-combat               .    | .   .   .   
  Combat                   .    | .   .   .   
Robot Hacks Applied        .    | .   .   .   
Relay Couplers Released    .    | .   .   .   
Fabnet Peak Effective %    .    | .   .   .   
Robots Rewired             .    | .   .   .   
Allies Hacked              .    | .   .   .   
Hacks Repelled             .    | .   .   .   

 Allies                         | -11 -10 -10 
--------                   Run  | Yrd Mat Sub 
Total Allies               .    | .   .   .   
  Largest Group            .    | .   .   .   
  Highest-Rated Group      .    | .   .   .   
  Highest-Rated Ally       .    | .   .   .   
Total Orders               .    | .   .   .   
Ally Attacks               .    | .   .   .   
  Total Damage             .    | .   .   .   
  Kills                    .    | .   .   .   
Allies Corrupted           .    | .   .   .   
Allies Melted              .    | .   .   .   

 Intel                          | -11 -10 -10 
-------                    Run  | Yrd Mat Sub 
Robot Analysis Total       .    | .   .   .   
Derelict Logs Recovered    2    | .   .   2   
Drone Launches             .    | .   .   .   
  Drone Recoveries         .    | .   .   .   

 Exploration                    | -11  -10  -10  
-------------              Run  | Yrd  Mat  Sub  
Turns Passed               1656 | .    415  1241 
Spaces Moved               890  | 1    158  731  
  Core                     .    | .    .    .    
  Treads                   412  | .    .    412  
  Legs                     478  | 1    158  319  
  Wheels                   .    | .    .    .    
  Hover                    .    | .    .    .    
  Flight                   .    | .    .    .    
  Fastest Speed            120  | 120  120  120  
  Average Speed            138  | 120  120  142  
  Slowest Speed            160  | 120  120  160  
  Overloaded Moves         .    | .    .    .    
  Propulsion Burnouts      .    | .    .    .    
  Robots Hopped            .    | .    .    .    
  Cave-ins Triggered       .    | .    .    .    
Exploration Rate (%)       25   | 2    33   42   
  Regions Visited          2
    Branch Regions         1
  Pre-discovered Areas     .    | .    .    .    
  Known Exits Taken        .    | .    .    .    
  Unknown Exits Taken      2    | 1    1    .    
Scrap Searched             9    | .    .    9    
Spaces Dug                 .    | .    .    .    
Terrain Destroyed          .    | .    .    .    
  Melee                    .    | .    .    .    
  Projectile               .    | .    .    .    
  AOE                      .    | .    .    .    
Terrain Rammed             .    | .    .    .    
  Walls Destroyed          .    | .    .    .    
  Machines Disabled        .    | .    .    .    

 Actions                        | -11 -10 -10 
---------                  Run  | Yrd Mat Sub 
Total                      1191 | .   329 862 
  Wait                     192  | .   128 64  
  Move                     888  | .   157 731 
  Hop                      .    | .   .   .   
  Pick Up                  7    | .   2   5   
  Fast Attach              9    | .   4   5   
  Attach                   6    | .   1   5   
  Detach                   3    | .   1   2   
  Swap                     5    | .   4   1   
  Drop                     11   | .   3   8   
  Fire                     70   | .   29  41  
  Melee                    .    | .   .   .   
  Ram                      .    | .   .   .   
  Kick                     .    | .   .   .   
  Crush                    .    | .   .   .   
  Escape Stasis            .    | .   .   .   
  Rewire                   .    | .   .   .   
  Trap                     .    | .   .   .   
  Miscellaneous            .    | .   .   .   

 Route 
-------
-11/Scrapyard
-10/Materials (discovered 2 exits: [*Mat] / [*Sub])
-10/Subcaves (discovered 1 exit: [*Mat])

 History 
---------
 Turn | Location      | Event
    1 | -11/Scrapyard | Discovered new exit (range 0)
    1 | -11/Scrapyard | Entered Materials
   56 | -10/Materials | Discovered new exit (range 15)
  406 | -10/Materials | Discovered new exit (range 5)
  416 | -10/Materials | Entered Subcaves
  424 | -10/Subcaves  | Learned Materials garrison access intel
  526 | -10/Subcaves  | Build established: Scavenger-Mutant
  733 | -10/Subcaves  | Discovered new exit (range 6)
  871 | -10/Subcaves  | Core integrity fell below 50%
  909 | -10/Subcaves  | Lost 3 parts (1n2w)
  920 | -10/Subcaves  | Shifting Twisted Machinery released Mak. Laser
 1111 | -10/Subcaves  | Shifting Twisted Machinery released Battle Cannon
 1180 | -10/Subcaves  | Build established: Mutant
 1373 | -10/Subcaves  | Core integrity fell below 20%
 1429 | -10/Subcaves  | Learned Materials terminal intel
 1529 | -10/Subcaves  | Shifting Twisted Machinery released Sub. Machine Gun
 1531 | -10/Subcaves  | Shifting Twisted Machinery released Mak. Power Source
 1654 | -10/Subcaves  | Ambushed by angry Subdweller bent on revenge
 1657 | -10/Subcaves  | Destroyed by BC-QPP(R) with Subdweller Machine Gun

 Last Messages 
---------------
01432_ Found 67 Matter.
01436_ Acquired Sub. Power Source.
01438_ Searching scrap...
01438_ Found Sub. Beam Cannon.
01438_ Found 34 Matter.
01441_ Dropped Wheel.
01442_ Dropped Sml. Laser. <x2>
01443_ Acquired Sub. Beam Cannon.
01444_ Searching scrap...
01444_ Found Sub. Laser.
01444_ Found 57 Matter.
01445_ Searching scrap...
01445_ Found Battle Rifle.
01445_ Found 31 Matter.
01449_ Acquired Sub. Laser.
Sub. Machine Gun falls loose from the Twisted Machinery.
Mak. Power Source falls loose from the Twisted Machinery.
NJ-FT8(R) emerges from concealment.
01654_ BC-QPP(R) angrily emerges from the Twisted Machinery.
01654_ BC-QPP(R): "ECOKILL!"

 Map 
-----
+----------------------------------------------------+
| ?????????????????????????????????????????????????? |
| ?????????????????????????????????????????????????? |
| ?????????????????????????????????????????????????? |
| ?????????????????????????????????????????????????? |
| ?????????????????????????????????????????????????? |
| ?????????????????????????????????????????????????? |
| ?????????????????????????????????????????????????? |
| ?????????????????????????????????????????????????? |
| ???????????????  ????????????????????????????????? |
| ??????????????    ???????????????????????????????? |
| ???????????????    ??????????????????????????????? |
| ???????????????#   ??????####????"???????????????? |
| ???????????????#    ???##    ???? " ?????????????? |
| ????????????????    ???#     #??#    ????????????? |
| ?????????????????   #??#     ##?     ????????????? |
| ??????????????????#  ###      ###    ????????????? |
| ?????????????????##       "   # #    ????????????? |
| ?????????????????#      """"""    ""?????????????? |
| ??????????????????      """""""""""#?????????????? |
| ?????????????????????#   """  #?#""#?????????????? |
| ????????????????????##    "   ### "#?????????????? |
| ????????????????????#          #  "##????????????? |
| ????????????????????#   ###"      " #????????????? |
| ????????????????????#   #?#"""""[ ""#????????????? |
| ????????????????????#   ###    """###????????????? |
| ????????????????????#    @       "*##????????????? |
| ????????????????????##         R  " #????????????? |
| ?????????????????###?#   """"" """"" #???????????? |
| ????????????????## ###   """"""##""""#???????????? |
| ????????????????#             ####"""#???????????? |
| ????????????????#            ##???##"#???????????? |
| ????????????????#   ######  ##???????????????????? |
| ???????????????##  ##????#  #????????????????????? |
| ??????????????##  ##??##?#  #????????????????????? |
| ?????????????##   #??# ###  #????????????????????? |
| ?????????????#    #??   ##  #????????????????????? |
| ?????????????#    ###   ### #????????????????????? |
| ?????????????##    #     ####????????????????????? |
| ??????????????#             #????????????????????? |
| ??????????????#             #????????????????????? |
| ??????????????##### #        #???????????????????? |
| ?????????????????#   ####        ????????????????? |
| ?????????????????## ##?????      #???????????????? |
| ????????????????###  ##??????    #???????????????? |
| ???????????????##     ##?????????????????????????? |
| ???????????????#       #????#   ?????????????????? |
| ???????????????#       ##?##     ????????????????? |
| ???????????????####     ###   #????????"?????????? |
| ???????????????####         #????????"  ?????????? |
| ????#########??#            #???????    ?????????? |
+----------------------------------------------------+

 Best States
-------------
Heat Dissipation           35
Energy Generation          15
Energy Capacity            250
Matter Stores              300
Matter Capacity            300
Sight Range                16
Terrain Scan Density       10
Armor Coverage             100
Evasion (%)                55
Recoil Reduction           2

 Item Schematics 
-----------------
None

 Robot Schematics 
------------------
None

 Fabricated
------------
Nothing

 Alien Tech Used 
-----------------
None

 Achievements 
--------------
None

 Challenges 
------------
None

 Game 
------
Seed              ChainFlakCloak
  Manual?         0
Play Time         00:12:11
  Cumulative      400.0 hours
  Start           2024.07.14 @ 20:41:19
  End             2024.07.14 @ 20:58:27
Sessions          1
Manual Loads      0
Difficulty        Rogue
Special Mode      None
Game No.          411
  Rogue           411
  Adventurer      0
  Explorer        0
Win Type          -
  Total           30
  Types           16/3/5/1/2/0/3/0/0
Lore%             72
Gallery%          85
Achievement%      82
Wizard Run        0

 Options 
---------
Layout            0
ASCII             0
Keyboard          0
Movement          Mouse
Keybinds          0
Fullscreen        2
Font              24/Smallcaps
Map View          76x50
Zoom Use          0%
Tactical HUD      1
Map Filters       NONE
Filters           NONE
Steam             1


RUN: bc34189d-50f8-4fc9-bc7e-11abc8934467